bitfinex-derivatives/quotes_BTCF0:USTF0_20241015
["timestamp","ask_amount","ask_price","bid_price","bid_amount"]
[1728989602863,0.076036,65775.0,65772.0,0.3048807]
[1728989603063,0.076036,65775.0,65774.0,0.3608]
[1728989603366,0.076036,65775.0,65774.0,0.45497456]
[1728989604074,0.076036,65775.0,65774.0,0.53101056]
[1728989604663,0.076036,65775.0,65774.0,0.52997499]
[1728989604664,0.087036,65775.0,65774.0,0.52997499]
[1728989604872,0.011,65775.0,65774.0,0.52997499]
[1728989605265,0.087035,65775.0,65774.0,0.52997499]
[1728989605763,0.100035,65775.0,65774.0,0.52997499]
[1728989606477,0.100035,65775.0,65774.0,0.53097499]
[1728989606478,0.101035,65775.0,65774.0,0.53097499]
[1728989607972,0.101035,65775.0,65774.0,0.438236]
[1728989608973,0.12028876,65775.0,65774.0,0.438236]
[1728989611472,0.12028876,65775.0,65774.0,0.46582047]
[1728989615069,0.16498038,65775.0,65774.0,0.46582047]
[1728989618281,1.66498833,65775.0,65774.0,0.46582047]
[1728989619080,1.66498833,65775.0,65774.0,0.10502047]
[1728989619283,1.66499268,65775.0,65774.0,0.10502047]
[1728989622782,1.66499268,65775.0,65774.0,0.13672047]
[1728989622982,1.62028876,65775.0,65774.0,0.22947865]
[1728989623987,1.62028876,65775.0,65774.0,0.22947271]
[1728989624668,0.04425376,65775.0,65774.0,0.19777271]
[1728989625779,0.12028876,65775.0,65774.0,0.19777271]
[1728989626280,0.11928876,65775.0,65774.0,0.2884706]
[1728989628282,0.11928876,65775.0,65774.0,0.19777271]
[1728989629280,0.04325376,65775.0,65774.0,0.30831638]
[1728989633679,0.04325376,65775.0,65774.0,0.30851597]
[1728989636488,0.04325376,65775.0,65774.0,0.66931597]
[1728989636679,0.04225376,65775.0,65774.0,0.66931597]
[1728989637083,0.04225376,65775.0,65774.0,0.46582047]
[1728989637279,0.08723675,65775.0,65774.0,0.46582047]
[1728989639785,0.04225376,65775.0,65774.0,0.02898447]
[1728989639990,0.11828876,65775.0,65774.0,0.02898447]
[1728989640287,0.14938876,65775.0,65774.0,0.02898447]
[1728989641192,0.14938876,65775.0,65774.0,0.14898447]
[1728989643193,0.14938876,65775.0,65774.0,0.22502047]
[1728989644288,0.24611394,65775.0,65774.0,0.22502047]
[1728989644507,0.19414724,65775.0,65774.0,0.22502047]
[1728989644989,0.14938876,65775.0,65774.0,0.40888019]
[1728989646684,0.14938876,65775.0,65774.0,0.33284419]
[1728989647087,0.14938876,65775.0,65774.0,0.24203246]
[1728989647291,0.14938876,65775.0,65774.0,0.40888019]
[1728989648287,0.14938876,65775.0,65774.0,0.33284419]
[1728989648993,0.14938876,65775.0,65774.0,0.24203246]
[1728989651486,0.14938876,65775.0,65774.0,0.24202823]
[1728989652198,0.19412059,65775.0,65774.0,0.14898447]
[1728989654790,0.19412059,65775.0,65774.0,0.22502047]
[1728989654997,0.16302059,65775.0,65774.0,0.22502047]
[1728989656198,0.08713485,65775.0,65774.0,0.22502047]
[1728989658299,0.16316985,65775.0,65774.0,0.22502047]
[1728989659394,0.11828876,65775.0,65774.0,0.22502047]
[1728989660300,0.11828876,65775.0,65774.0,0.31793945]
[1728989661095,0.11828876,65775.0,65774.0,0.31794967]
[1728989665703,0.11828876,65775.0,65774.0,0.31800515]
[1728989665997,0.11828876,65775.0,65774.0,0.09438468]
[1728989666203,0.11828876,65775.0,65772.0,0.0004]
[1728989666204,0.076038,65773.0,65772.0,0.0004]
[1728989666494,0.076038,65773.0,65772.0,0.09349599]
[1728989666495,0.532158,65773.0,65772.0,0.09349599]
[1728989666698,1.59529176,65773.0,65772.0,0.07615174]
[1728989667401,1.69475436,65773.0,65772.0,0.0004]
[1728989668099,1.75560418,65773.0,65772.0,0.0004]
[1728989668403,1.76360418,65773.0,65772.0,0.0004]
[1728989670200,1.90041507,65773.0,65772.0,0.0004]
[1728989671012,0.40041507,65773.0,65772.0,0.0004]
[1728989671202,0.26360418,65773.0,65772.0,0.076439]
[1728989671706,0.20275436,65773.0,65772.0,0.076439]
[1728989672204,0.07327895,65773.0,65772.0,0.076439]
[1728989673508,0.02725376,65773.0,65772.0,0.076439]
[1728989673706,0.02325376,65773.0,65772.0,0.076439]
[1728989675505,0.02325376,65773.0,65772.0,0.196439]
[1728989677307,0.02325376,65773.0,65772.0,0.22354595]
[1728989677504,0.02325376,65773.0,65772.0,0.58434595]
[1728989681311,0.02325376,65773.0,65772.0,0.67567633]
[1728989682409,0.16046465,65773.0,65772.0,0.58394595]
[1728989682607,0.32299137,65773.0,65772.0,0.58394595]
[1728989683200,0.18618048,65773.0,65772.0,0.58394595]
[1728989683902,0.12449141,65773.0,65772.0,0.58394595]
[1728989684916,0.02365376,65773.0,65772.0,0.58394595]
[1728989685307,0.12309999,65773.0,65772.0,0.58394595]
[1728989685712,0.08067138,65773.0,65772.0,0.58494595]
[1728989686411,0.06967138,65773.0,65772.0,0.58394595]
[1728989686613,0.07667138,65773.0,65772.0,0.58494595]
[1728989688016,0.19093029,65773.0,65772.0,0.58494595]
[1728989689108,0.13009564,65773.0,65772.0,0.58494595]
[1728989689807,0.13007194,65773.0,65772.0,0.58494595]
[1728989690209,0.13007194,65773.0,65772.0,0.78632185]
[1728989690210,0.03065376,65773.0,65772.0,0.78632185]
[1728989691510,0.02465376,65773.0,65772.0,0.79132185]
[1728989692720,0.02065376,65773.0,65772.0,0.79132185]
[1728989692912,0.02165376,65773.0,65772.0,0.79632185]
[1728989693110,0.02065376,65773.0,65772.0,0.79032185]
[1728989693308,0.02165376,65773.0,65772.0,0.79632185]
[1728989694015,0.02165376,65773.0,65772.0,0.80681801]
[1728989694714,0.02165376,65773.0,65772.0,0.80685367]
[1728989695418,0.02165376,65773.0,65772.0,0.68685367]
[1728989697209,0.02165376,65773.0,65772.0,0.59494595]
[1728989698716,0.02165376,65773.0,65772.0,0.71494595]
[1728989699224,0.02165376,65773.0,65772.0,0.79057949]
[1728989699825,0.02165376,65773.0,65772.0,0.67057949]
[1728989700124,0.02165376,65773.0,65772.0,0.79057949]
[1728989700423,0.02165376,65773.0,65772.0,0.80693227]
[1728989701622,0.0051,65781.0,65780.0,0.076029]
[1728989701824,0.0016,65781.0,65780.0,0.677229]
[1728989703022,0.0016,65781.0,65780.0,0.685229]
[1728989703221,0.0026,65781.0,65780.0,0.685229]
[1728989705325,0.10261099,65781.0,65780.0,0.565229]
[1728989705622,0.17863899,65781.0,65780.0,0.565229]
[1728989705928,0.17863899,65781.0,65780.0,0.3692]
[1728989706118,0.35974199,65781.0,65780.0,0.39658087]
[1728989706429,0.35974199,65781.0,65780.0,0.51658087]
[1728989706925,0.35974199,65781.0,65772.0,0.0141]
[1728989706926,0.076038,65773.0,65772.0,0.0141]
[1728989707229,0.076043,65768.0,65765.0,0.3714]
[1728989707522,0.076046,65766.0,65762.0,0.0004]
[1728989707728,0.076049,65763.0,65762.0,0.02808794]
[1728989708023,0.24150198,65763.0,65762.0,0.0004]
[1728989708227,0.23436812,65763.0,65762.0,0.1204]
[1728989709027,0.37113463,65763.0,65762.0,0.1204]
[1728989709228,0.23436812,65763.0,65762.0,0.1204]
[1728989710212,0.17427502,65763.0,65762.0,0.1204]
[1728989710417,0.17527502,65763.0,65762.0,0.1204]
[1728989710615,0.17627502,65763.0,65762.0,0.1224]
[1728989711426,0.17527502,65763.0,65762.0,0.1224]
[1728989712222,0.17527502,65763.0,65762.0,0.21496186]
[1728989712223,0.077049,65763.0,65762.0,0.21496186]
[1728989713129,0.077049,65763.0,65762.0,0.29101186]
[1728989714219,0.077049,65763.0,65762.0,0.36655753]
[1728989715025,0.077049,65763.0,65762.0,0.29101186]
[1728989715226,0.077049,65763.0,65762.0,0.36654638]
[1728989716235,0.077049,65763.0,65762.0,0.27398452]
[1728989716532,0.077049,65763.0,65762.0,0.29090986]
[1728989718030,0.077049,65763.0,65762.0,0.29037246]
[1728989718327,0.077049,65763.0,65762.0,0.19845]
[1728989721235,0.077049,65763.0,65762.0,0.19805]
[1728989721738,0.077049,65763.0,65762.0,0.2735626]
[1728989722737,0.001,65763.0,65762.0,0.2735626]
[1728989723829,0.001,65763.0,65762.0,0.36591964]
[1728989724231,0.076047,65765.0,65764.0,0.076048]
[1728989724433,0.076047,65765.0,65764.0,0.076448]
[1728989726234,0.076047,65765.0,65764.0,0.1204]
[1728989726433,0.076047,65765.0,65764.0,0.1234]
[1728989727035,0.077047,65765.0,65764.0,0.1254]
[1728989729937,0.0004,65768.0,65764.0,0.1254]
[1728989730245,0.076047,65765.0,65764.0,0.1254]
[1728989730935,0.076047,65765.0,65764.0,0.1234]
[1728989731137,0.076047,65765.0,65764.0,0.1224]
[1728989731439,0.076047,65765.0,65764.0,0.1254]
[1728989731841,0.077047,65765.0,65764.0,0.1254]
[1728989735531,0.077047,65765.0,65764.0,0.21800917]
[1728989736041,0.0004,65768.0,65764.0,0.21800917]
[1728989736241,0.0004,65768.0,65767.0,0.19611625]
[1728989736242,0.076443,65768.0,65767.0,0.19611625]
[1728989736443,0.076443,65768.0,65767.0,0.21300917]
[1728989736934,0.076443,65768.0,65767.0,0.28872575]
[1728989737233,0.076443,65768.0,65767.0,0.21300917]
[1728989737438,0.076443,65768.0,65767.0,0.21600917]
[1728989738435,0.196043,65769.0,65767.0,0.1234]
[1728989738643,0.196043,65769.0,65768.0,0.0931329]
[1728989739836,0.197043,65769.0,65768.0,0.0931329]
[1728989740836,0.0305,65770.0,65768.0,0.0951329]
[1728989741047,0.467341,65770.0,65769.0,0.0931329]
[1728989741843,0.587341,65770.0,65769.0,0.0931329]
[1728989742044,0.588341,65770.0,65769.0,0.0931329]
[1728989742544,0.588341,65770.0,65769.0,0.0004]
[1728989742545,0.89808545,65770.0,65769.0,0.0004]
[1728989742742,0.89708545,65770.0,65769.0,0.0004]
[1728989742942,0.89908545,65770.0,65769.0,0.0004]
[1728989743340,0.43174445,65770.0,65769.0,0.0014]
[1728989743938,0.35571149,65770.0,65769.0,0.0014]
[1728989744330,0.29586459,65770.0,65769.0,0.0014]
[1728989745742,0.10401874,65771.0,65770.0,0.05983666]
[1728989745941,0.27658107,65771.0,65770.0,0.06023666]
[1728989748635,0.136637,65774.0,65770.0,0.06023666]
[1728989748949,0.19604,65771.0,65770.0,0.06023666]
[1728989749244,0.19904,65771.0,65770.0,0.06023666]
[1728989749445,0.25778535,65771.0,65770.0,0.06023666]
[1728989749646,0.19904,65771.0,65770.0,0.06023666]
[1728989749839,0.19604,65771.0,65770.0,0.06023666]
[1728989750546,0.19604,65771.0,65770.0,0.12085631]
[1728989750740,0.19904,65771.0,65770.0,0.12085631]
[1728989752650,0.16431556,65774.0,65770.0,0.12085631]
[1728989752837,0.16431556,65774.0,65773.0,0.0004]
[1728989753043,0.28431556,65774.0,65773.0,0.0004]
[1728989753233,1.34043556,65774.0,65773.0,0.0004]
[1728989753645,0.74043556,65774.0,65773.0,0.0004]
[1728989753839,0.74943556,65774.0,65773.0,0.0014]
[1728989755548,0.71913556,65774.0,65773.0,0.0014]
[1728989755745,0.71913556,65774.0,65773.0,0.04685918]
[1728989756838,0.26301556,65774.0,65773.0,0.04685918]
[1728989757353,0.26301556,65774.0,65773.0,0.0014]
[1728989757536,0.26301556,65774.0,65773.0,0.00061112]
[1728989757537,0.4163851,65774.0,65773.0,0.00061112]
[1728989757737,0.58420625,65774.0,65773.0,0.00061112]
[1728989757934,0.4856363,65774.0,65773.0,0.00061112]
[1728989759044,0.3864851,65774.0,65773.0,0.00061112]
[1728989763638,0.53858277,65774.0,65773.0,0.00061112]
[1728989764153,0.5385831,65774.0,65773.0,0.00061112]
[1728989764337,0.38638754,65774.0,65773.0,0.00061112]
[1728989764542,0.53858241,65774.0,65773.0,0.00061112]
[1728989764740,0.38638754,65774.0,65773.0,0.00061112]
[1728989765644,0.23311556,65774.0,65773.0,0.00061112]
[1728989769345,0.23311556,65774.0,65773.0,0.04607095]
[1728989769750,0.07604,65771.0,65770.0,0.06023666]
[1728989769948,0.359784,65771.0,65770.0,0.06023666]
[1728989770156,1.415904,65771.0,65770.0,0.06023666]
[1728989770359,2.915904,65771.0,65770.0,0.06023666]
[1728989770559,0.076041,65770.0,65769.0,0.0004]
[1728989770756,0.936705,65770.0,65769.0,0.0004]
[1728989771059,1.536705,65770.0,65769.0,0.0004]
[1728989771659,0.936705,65770.0,65769.0,0.0004]
[1728989772260,0.892961,65770.0,65769.0,0.0004]
[1728989772455,0.076043,65768.0,65764.0,0.0004]
[1728989772663,0.076048,65764.0,65763.0,0.00033313]
[1728989772859,0.22739141,65764.0,65763.0,0.00033313]
[1728989773056,0.22729242,65764.0,65763.0,0.00033313]
[1728989774165,0.37930534,65764.0,65763.0,0.00033313]
[1728989774356,0.22729242,65764.0,65763.0,0.00033313]
[1728989775063,0.22829242,65764.0,65763.0,0.00433313]
[1728989775264,0.38028402,65764.0,65763.0,0.00433313]
[1728989775560,0.38028402,65764.0,65763.0,0.00833313]
[1728989776451,0.4070832,65764.0,65763.0,0.00833313]
[1728989776864,0.2550916,65764.0,65763.0,0.00833313]
[1728989777554,0.40705055,65764.0,65763.0,0.00833313]
[1728989777953,0.40461526,65764.0,65763.0,0.00833313]
[1728989778463,0.25265631,65764.0,65763.0,0.00833313]
[1728989779565,0.10384718,65764.0,65763.0,0.00833313]
[1728989779862,0.46464718,65764.0,65763.0,0.00833313]
[1728989780070,1.64084718,65764.0,65763.0,1.3e-07]
[1728989780365,1.64084718,65764.0,65752.0,0.0621]
[1728989780366,0.076057,65756.0,65752.0,0.0621]
[1728989780569,0.076061,65753.0,65752.0,0.0621]
[1728989780861,0.196061,65753.0,65752.0,0.0621]
[1728989781557,1.696061,65753.0,65752.0,0.0621]
[1728989781763,1.697061,65753.0,65752.0,0.0621]
[1728989782568,1.698061,65753.0,65752.0,0.0721]
[1728989785470,1.698061,65753.0,65752.0,0.1921]
[1728989789567,1.698061,65753.0,65752.0,0.0721]
[1728989789765,1.698061,65753.0,65752.0,0.09914852]
[1728989789967,1.698061,65753.0,65752.0,0.14456405]
[1728989792572,1.698061,65753.0,65752.0,0.09914852]
[1728989794667,1.698061,65753.0,65752.0,0.02302409]
[1728989794668,1.78955412,65753.0,65752.0,0.02302409]
[1728989794871,0.076063,65751.0,65750.0,0.3608]
[1728989795269,0.16755612,65751.0,65750.0,0.3608]
[1728989796372,0.16855612,65751.0,65750.0,0.3608]
[1728989796574,0.16855612,65751.0,65750.0,0.38858071]
[1728989797273,0.16955612,65751.0,65750.0,0.38858071]
[1728989798583,0.168224,65751.0,65750.0,0.38858071]
[1728989801168,0.2234382,65751.0,65750.0,0.38858071]
[1728989801373,0.168224,65751.0,65750.0,0.38858071]
[1728989801773,0.22347765,65751.0,65750.0,0.38858071]
[1728989802078,0.22353619,65751.0,65750.0,0.38858071]
[1728989802479,0.22353619,65751.0,65750.0,0.50858071]
[1728989802680,0.078063,65751.0,65750.0,0.60428211]
[1728989802880,0.078063,65751.0,65750.0,0.48428211]
[1728989806689,0.078063,65751.0,65750.0,0.48444727]
[1728989808376,0.078063,65751.0,65750.0,0.57529179]
[1728989808578,0.078063,65751.0,65750.0,0.45666656]
[1728989813982,0.078063,65751.0,65750.0,0.09586656]
[1728989814187,0.078063,65751.0,65750.0,0.45666656]
[1728989816386,0.078063,65751.0,65750.0,0.45677129]
[1728989817883,0.16862475,65751.0,65750.0,0.3608]
[1728989819189,0.11996952,65751.0,65750.0,0.3608]
[1728989820091,0.16862658,65751.0,65750.0,0.3608]
[1728989820892,0.076064,65750.0,65749.0,0.0328]
[1728989821193,0.16657809,65750.0,65749.0,0.3936]
[1728989822295,0.16757809,65750.0,65749.0,0.3936]
[1728989822685,0.28757809,65750.0,65749.0,0.3608]
[1728989822881,0.076072,65743.0,65742.0,0.3608]
[1728989823086,0.076079,65737.0,65736.0,0.4536]
[1728989823284,0.196079,65737.0,65736.0,0.4536]
[1728989823482,0.23776357,65737.0,65736.0,0.4536]
[1728989823901,0.196079,65737.0,65736.0,0.4536]
[1728989824085,0.11765335,65737.0,65736.0,0.5736]
[1728989824785,0.078079,65737.0,65736.0,0.78530771]
[1728989825989,0.078079,65737.0,65736.0,0.81244593]
[1728989826388,0.03239668,65737.0,65736.0,0.81244593]
[1728989826588,0.002,65737.0,65736.0,0.81244593]
[1728989826791,0.078079,65737.0,65736.0,0.81244593]
[1728989827192,0.3643,65756.0,65736.0,0.94510183]
[1728989827495,0.076062,65745.0,65744.0,0.3612]
[1728989827794,0.076062,65745.0,65744.0,0.45778367]
[1728989828490,0.077062,65745.0,65744.0,0.45778367]
[1728989828997,0.077062,65745.0,65744.0,0.5489887]
[1728989829289,0.077062,65745.0,65744.0,0.45693272]
[1728989830290,0.078062,65745.0,65744.0,0.45793272]
[1728989831404,1.578062,65745.0,65744.0,0.45793272]
[1728989832893,1.61988434,65745.0,65744.0,0.3622]
[1728989834100,1.61621601,65745.0,65744.0,0.3622]
[1728989834315,1.61721601,65745.0,65744.0,0.3622]
[1728989838699,1.61734607,65745.0,65744.0,0.3622]
[1728989839814,1.578062,65745.0,65744.0,0.55140015]
[1728989840102,1.578062,65745.0,65744.0,0.46019512]
[1728989841495,1.578062,65745.0,65744.0,0.48791534]
[1728989842315,1.578062,65745.0,65744.0,0.57913479]
[1728989842808,1.578062,65745.0,65744.0,0.21833479]
[1728989842997,1.578062,65745.0,65744.0,0.57913479]
[1728989843616,1.578062,65745.0,65744.0,0.48791534]
[1728989844104,1.578062,65745.0,65744.0,0.57914001]
[1728989844695,1.578062,65745.0,65744.0,0.48791534]
[1728989846298,1.578062,65745.0,65744.0,0.57914001]
[1728989846802,1.578062,65745.0,65744.0,0.48791534]
[1728989847202,1.578062,65745.0,65744.0,0.57914001]
[1728989847812,1.61727583,65745.0,65744.0,0.38992022]
[1728989848498,1.61727882,65745.0,65744.0,0.38992022]
[1728989848911,1.61727882,65745.0,65744.0,0.3622]
[1728989853310,1.61729455,65745.0,65744.0,0.3622]
[1728989854012,1.66284854,65745.0,65744.0,0.3622]
[1728989854806,1.578062,65745.0,65744.0,0.57731612]
[1728989857206,1.578062,65745.0,65744.0,0.55166759]
[1728989858811,1.578062,65745.0,65744.0,0.55172343]
[1728989859010,1.578062,65745.0,65744.0,0.46039447]
[1728989867611,1.578062,65745.0,65744.0,0.577463]
[1728989867811,1.578062,65745.0,65744.0,0.57748339]
[1728989868527,1.578062,65745.0,65741.0,0.01055798]
[1728989868528,2.058862,65745.0,65741.0,0.01055798]
[1728989868815,2.058862,65745.0,65732.0,0.36292]
[1728989868816,0.076081,65729.0,65727.0,0.0076]
[1728989869018,0.076081,65729.0,65726.0,0.3608]
[1728989869019,0.12,65728.0,65726.0,0.3608]
[1728989869223,0.076083,65727.0,65726.0,0.3608]
[1728989869611,0.136783,65727.0,65726.0,0.43683127]
[1728989870118,1.72422106,65727.0,65726.0,0.3608]
[1728989871325,1.75221439,65727.0,65726.0,0.3608]
[1728989871914,1.75321439,65727.0,65726.0,0.3608]
[1728989872214,1.7072373,65727.0,65726.0,0.3608]
[1728989873907,1.7511543,65727.0,65714.0,0.37052]
[1728989874113,0.196097,65715.0,65714.0,0.3608]
[1728989875522,0.197097,65715.0,65714.0,0.3608]
[1728989876723,0.198097,65715.0,65714.0,0.3608]
[1728989877812,0.076098,65714.0,65713.0,0.12]
[1728989878014,0.076098,65714.0,65713.0,0.18063137]
[1728989878219,0.076098,65714.0,65713.0,0.18058584]
[1728989878720,0.076098,65714.0,65713.0,0.12]
[1728989878919,0.077098,65714.0,65713.0,0.18058584]
[1728989879122,0.078098,65714.0,65713.0,0.18058584]
[1728989879311,0.078098,65714.0,65713.0,0.12]
[1728989879716,0.078098,65714.0,65713.0,0.18058584]
[1728989880332,0.078098,65714.0,65713.0,0.54138584]
[1728989880821,0.078098,65714.0,65713.0,0.12]
[1728989881028,0.078098,65714.0,65713.0,0.4808]
[1728989881726,0.078098,65714.0,65713.0,0.54138584]
[1728989882428,0.078098,65714.0,65713.0,0.4808]
[1728989882925,0.078098,65714.0,65713.0,0.54138584]
[1728989883427,0.078098,65714.0,65713.0,0.4808]
[1728989883728,0.078098,65714.0,65713.0,0.12]
[1728989884131,0.078098,65714.0,65713.0,0.4808]
[1728989884330,0.078098,65714.0,65713.0,0.12]
[1728989884632,0.078098,65714.0,65713.0,0.4808]
[1728989885727,0.078098,65714.0,65713.0,0.3608]
[1728989888323,0.078098,65714.0,65708.0,0.17768268]
[1728989888324,0.076104,65709.0,65708.0,0.17768268]
[1728989889520,0.077104,65709.0,65708.0,0.17768268]
[1728989889721,0.078104,65709.0,65708.0,0.17768268]
[1728989892324,1.578104,65709.0,65708.0,0.17768268]
[1728989893120,1.578104,65709.0,65708.0,0.53848268]
[1728989893327,1.578104,65709.0,65708.0,0.71142693]
[1728989894325,1.578104,65709.0,65708.0,0.71174271]
[1728989894531,1.578104,65709.0,65708.0,0.63563771]
[1728989895030,1.578104,65709.0,65708.0,0.71174271]
[1728989896327,1.578104,65709.0,65708.0,0.80255663]
[1728989897433,0.076099,65713.0,65708.0,0.82780161]
[1728989897627,0.03040384,65713.0,65712.0,0.557301]
[1728989897825,0.076099,65713.0,65712.0,0.77050176]
[1728989898029,1.576099,65713.0,65712.0,0.77050176]
[1728989898635,1.501,65713.0,65712.0,0.93869099]
[1728989898935,1.502,65713.0,65712.0,0.93869099]
[1728989899732,1.578099,65713.0,65712.0,0.96905919]
[1728989900430,1.578099,65713.0,65712.0,0.83506996]
[1728989901635,1.578099,65713.0,65712.0,0.84873378]
[1728989901932,1.578099,65713.0,65712.0,0.60860076]
[1728989903233,1.577099,65713.0,65712.0,0.60860076]
[1728989903432,1.578099,65713.0,65712.0,0.61060076]
[1728989903648,1.578099,65713.0,65712.0,0.57640076]
[1728989904028,1.578099,65713.0,65712.0,0.46035503]
[1728989905432,1.578099,65713.0,65712.0,0.45935503]
[1728989905924,1.578099,65713.0,65712.0,0.09855503]
[1728989906125,1.578099,65713.0,65712.0,0.45935503]
[1728989906424,1.578099,65713.0,65712.0,0.55066349]
[1728989907029,1.578099,65713.0,65712.0,0.45935503]
[1728989907534,1.578099,65713.0,65712.0,0.57481317]
[1728989908035,1.69383757,65713.0,65712.0,0.3622]
[1728989909036,1.69383449,65713.0,65712.0,0.3622]
[1728989910730,1.76657571,65713.0,65712.0,0.0014]
[1728989910930,1.81383152,65713.0,65712.0,0.0014]
[1728989911130,1.69383152,65713.0,65712.0,0.0014]
[1728989911936,1.69283152,65713.0,65712.0,0.0004]
[1728989912136,1.69383152,65713.0,65712.0,0.0014]
[1728989913744,1.69245991,65713.0,65712.0,0.0014]
[1728989913942,1.69345991,65713.0,65712.0,0.0014]
[1728989915349,1.60587212,65713.0,65712.0,0.0014]
[1728989915647,1.72587212,65713.0,65712.0,0.0014]
[1728989923144,1.81312722,65713.0,65712.0,0.00067467]
[1728989923352,1.81312724,65713.0,65712.0,0.00067467]
[1728989925537,1.93312724,65713.0,65712.0,0.00067467]
[1728989926554,1.98614663,65713.0,65712.0,0.00067467]
[1728989926844,1.86614663,65713.0,65712.0,0.00067467]
[1728989928049,1.98614663,65713.0,65712.0,0.00067467]
[1728989928864,1.98614663,65713.0,65712.0,6.7e-07]
[1728989929151,2.32266663,65713.0,65712.0,6.7e-07]
[1728989929353,2.44266663,65713.0,65712.0,6.7e-07]
[1728989929849,2.38942271,65713.0,65712.0,6.7e-07]
[1728989930149,2.18239212,65713.0,65712.0,6.7e-07]
[1728989930747,1.72587212,65713.0,65712.0,6.7e-07]
[1728989930952,2.08667212,65713.0,65712.0,6.7e-07]
[1728989934638,2.08667212,65713.0,65712.0,0.06079826]
[1728989936342,2.08667212,65713.0,65712.0,6.7e-07]
[1728989936637,1.72587212,65713.0,65712.0,6.7e-07]
[1728989936845,2.08667212,65713.0,65712.0,6.7e-07]
[1728989937243,2.17371918,65713.0,65712.0,6.7e-07]
[1728989938856,2.12695216,65713.0,65712.0,6.7e-07]
[1728989940449,2.22699164,65713.0,65712.0,6.7e-07]
[1728989945255,2.08667212,65713.0,65712.0,6.7e-07]
[1728989947657,2.20667212,65713.0,65712.0,6.7e-07]
[1728989947857,2.08667212,65713.0,65712.0,6.7e-07]
[1728989948360,0.076101,65712.0,65711.0,5.9e-07]
[1728989950654,0.077101,65712.0,65711.0,5.9e-07]
[1728989951159,0.076106,65707.0,65706.0,0.07599699]
[1728989951458,0.196106,65707.0,65706.0,0.17301626]
[1728989951663,0.316106,65707.0,65706.0,0.17301626]
[1728989952165,0.196106,65707.0,65706.0,0.17301626]
[1728989952359,0.197106,65707.0,65706.0,0.17301626]
[1728989952564,0.198106,65707.0,65706.0,0.17301626]
[1728989954667,0.198106,65707.0,65706.0,0.07599699]
[1728989955364,0.076107,65706.0,65705.0,0.07599699]
[1728989955567,0.076107,65706.0,65705.0,0.17300346]
[1728989955568,0.196107,65706.0,65705.0,0.17300346]
[1728989956158,0.316107,65706.0,65705.0,0.17300346]
[1728989956663,0.317107,65706.0,65705.0,0.07599699]
[1728989957163,0.197107,65706.0,65705.0,0.07599699]
[1728989957562,0.197107,65706.0,65705.0,0.17300707]
[1728989957563,0.198107,65706.0,65705.0,0.17300707]
[1728989958261,0.198107,65706.0,65705.0,0.09701008]
[1728989958770,0.198107,65706.0,65705.0,0.17314131]
[1728989959866,0.198107,65706.0,65705.0,0.17313669]
[1728989960264,0.26361817,65706.0,65701.0,0.34951975]
[1728989960469,0.196112,65702.0,65701.0,0.34951975]
[1728989960668,0.50493436,65702.0,65701.0,0.34951975]
[1728989961169,0.33773017,65702.0,65701.0,0.34951975]
[1728989961971,0.33873017,65702.0,65701.0,0.34951975]
[1728989962377,0.33973017,65702.0,65701.0,0.34951975]
[1728989963063,0.49172926,65702.0,65701.0,0.34951975]
[1728989963363,0.37172926,65702.0,65701.0,0.34951975]
[1728989963661,0.49172926,65702.0,65701.0,0.34951975]
[1728989964072,0.33973017,65702.0,65701.0,0.34951975]
[1728989967174,0.198112,65702.0,65701.0,0.44709187]
[1728989969575,0.079603,65710.0,65701.0,1.74369187]
[1728989969576,0.0035,65710.0,65701.0,1.74369187]
[1728989969878,0.086701,65712.0,65711.0,0.076102]
[1728989970070,0.076101,65712.0,65711.0,0.437302]
[1728989970269,0.076101,65712.0,65711.0,1.613862]
[1728989970670,0.076101,65712.0,65711.0,1.013862]
[1728989970973,1.5,65713.0,65711.0,1.63449698]
[1728989971191,1.5,65713.0,65712.0,0.62975798]
[1728989971377,0.0106,65719.0,65712.0,0.62975798]
[1728989971378,0.076096,65716.0,65715.0,0.076094]
[1728989971678,0.076096,65716.0,65715.0,0.76919911]
[1728989971978,1.576096,65716.0,65715.0,0.76919911]
[1728989972177,1.576096,65716.0,65715.0,0.65403098]
[1728989973074,1.577096,65716.0,65715.0,0.65603098]
[1728989973276,1.577096,65716.0,65715.0,0.74716451]
[1728989973978,1.578096,65716.0,65715.0,0.74716451]
[1728989974378,1.578096,65716.0,65715.0,0.65603098]
[1728989974779,1.578096,65716.0,65715.0,0.559294]
[1728989976284,1.578096,65716.0,65715.0,0.3632]
[1728989976584,1.578096,65716.0,65715.0,0.4832]
[1728989983501,1.578096,65716.0,65715.0,0.93972]
[1728989985298,1.578096,65716.0,65715.0,0.4832]
[1728989985500,1.578096,65716.0,65715.0,0.93972]
[1728989985687,1.578096,65716.0,65715.0,1.53972]
[1728989985896,1.578096,65716.0,65715.0,1.615817]
[1728989986397,1.578096,65716.0,65715.0,0.559297]
[1728989987394,1.578096,65716.0,65715.0,0.6352109]
[1728989987589,1.578096,65716.0,65715.0,0.559297]
[1728989987791,1.578096,65716.0,65715.0,0.6352109]
[1728989987996,1.578096,65716.0,65715.0,1.11205151]
[1728989988795,1.578096,65716.0,65715.0,0.65553151]
[1728989989894,1.578096,65716.0,65715.0,0.559297]
[1728989993398,0.078096,65716.0,65715.0,0.559297]
[1728989994802,0.078096,65716.0,65715.0,0.679297]
[1728989995801,0.078096,65716.0,65715.0,0.75510976]
[1728989996195,0.078096,65716.0,65715.0,0.77555424]
[1728989996595,0.078096,65716.0,65715.0,0.85147626]
[1728989997103,0.078096,65716.0,65715.0,0.73147626]
[1728989997305,0.078096,65716.0,65715.0,0.65555424]
[1728989997801,0.078096,65716.0,65715.0,0.559297]
[1728989998101,0.078096,65716.0,65715.0,0.679297]
[1728989998292,0.078096,65716.0,65715.0,0.559297]
[1728989998293,0.11929059,65716.0,65715.0,0.559297]
[1728990000500,0.11929059,65716.0,65715.0,0.679297]
[1728990004612,0.16722279,65716.0,65715.0,0.679297]
[1728990005002,0.078096,65716.0,65715.0,0.86688081]
[1728990006513,0.078096,65716.0,65715.0,0.86687684]
[1728990007111,0.078096,65716.0,65715.0,0.77574331]
[1728990010409,0.078096,65716.0,65715.0,1.23226331]
[1728990011512,0.078096,65716.0,65715.0,1.59306331]
[1728990013012,0.11941156,65716.0,65715.0,1.496617]
[1728990013404,0.11941156,65716.0,65715.0,0.775017]
[1728990013710,0.11941156,65716.0,65715.0,1.496617]